{"text_format":"1","workbook":"xlsx","n_sheets":5,"sheets":["Данни","Описание","Целева група","Дейности по проекта","Финансов план"],"not_rendered":{"charts":0,"images":0,"macros":1,"external_links":0,"defined_names":0,"comments":0,"pivot_tables":0},"unopened":[],"bounds":{"document_bytes":16777216,"sheet_cells":100000,"rows_first":2000,"rows_last":500,"rows_between":2000,"halvings":0,"cell_chars":16384,"cell_head_chars":4096},"cells_cut":0,"cells_raw":0,"read":"whole","date_system":"1900"}

{"sheet":"Данни","index":0,"n_rows":37,"n_cols":1,"rows_kept":37,"cut":false,"hidden":false,"merged":[[0,0,0,1],[36,0,38,1]]}
["ПРОГРАМА \"СОФИЯ СПОРТУВА\" 2026"]
[]
["Направелние: "]
["Модул:"]
[]
["Име на проекта: "]
["Период за реализиране на проекта: "]
["Размер на исканата сума (цифром и словом):"]
["Размер на одобрената сума (попълва се при предоставяне на актуализиран финансов план, след одобрение за финансиране)"]
["Размер на собствения принос (при наличие):"]
[]
["Кандидатстваща институция\n/наименование/:"]
["ЕИК/БУЛСТАТ: "]
["Седалище и адрес на управление: "]
[]
["Адрес за кореспонденция:"]
["Ръководител на институцията /три имена/: "]
["Телефон за контакт:"]
["E-mail: "]
[]
["Координатор по проекта /три имена/:"]
["Телефон за контакт:"]
["E-mail: "]
[]
["Банкова сметка:\n/попълва се от юридически лица с нестопанска цел в обществена полза/"]
["Име на банката:"]
["Номер на сметката /IBAN/:"]
["Банков код /BIC/:"]
["Титуляр на сметката: "]
[]
[]
["Данни за партньорската институция/ организация (при наличие на такава):\n(при повече от един партньор добавете ред)"]
["Наименование:"]
["Адрес, телефон и е-mail:"]
["Ръководител на партньорската институция/ организация:"]
[]
["Важно! Моля да попълните всички възможни полета, с изключение на тези, при които е посочено, че се попълват при необходимост!"]

{"sheet":"Описание","index":1,"n_rows":15,"n_cols":1,"rows_kept":15,"cut":false,"hidden":false,"merged":[[0,0,0,1]]}
["ОПИСАНИЕ НА ПРОЕКТНО ПРЕДЛОЖЕНИЕ: "]
[]
["1. Описание на проектната идея\nОпишете точно и ясно идеята на проекта, начин за реализация, ключовите му предимства и отличителни характеристики.\n(до 10-15 реда)"]
[]
["2. Цели и обосновка на проекта\nПосочете специфични и конкретни цели, които ще бъдат постигнати с Вашия проект.\nКое налага изпълнението на проектните дейности и неговото реализиране?\nКак целите на проекта кореспондират със Стратегията „София спортува“? \n(до 5-10 реда)"]
[]
["3. Опит на институцията/организацията в изпълнението на проекти\nОпишете изпълнени проекти от Вашата организация, през последните три години."]
[]
["4. Описание на целевата група\n (преки и непреки участници)"]
[]
["5. Резултати\nОпишете очакваните резултати от изпълнение на дейностите включени в проекта.\nПосочете измерими количествени и качествени индикатори."]
[]
["6. Устойчивост и развитие\nОпишете устойчивостта на проекта и възможности надграждане след неговото приключване."]
[]
["7. Информираност и публичност\nОпишете методите и средствата за популяризиране на резултатите от дейностите по проекта."]

{"sheet":"Целева група","index":2,"n_rows":30,"n_cols":2,"rows_kept":30,"cut":false,"hidden":false,"merged":[[30,0,30,1],[0,0,0,1],[27,0,27,1],[28,0,28,1],[29,0,29,1],[21,0,21,1]]}
["Справка за състава на целевата група, \nвъзоснова на предложени дейности"]
[]
["Брой заявени преки участници по проект "]
[]
["Очакван брой непреки участници \n- родители, зрители и др."]
[]
["Деца до 7 години "]
["Деца и ученици 8-14 години"]
["Младежи 15-18 години"]
["Младежи 19-24 години"]
["Младежи 24 -29 години"]
["30-60 години"]
["Над 60 години"]
["Общ брой участници по възрастов показател: ",{"$f":"SUM(B7:B13)","v":0}]
["Други участници в дейностите:"]
["Малцинства"]
["Хора с увреждания"]
["Хора в неравностойно положение"]
[]
["Таблицата по възрастов показател е попълнена: ",{"$f":"IF(B14=B3,\"правилно\",\"грешно\")","v":"правилно"}]
[]
["Само за районни администрации:"]
["Брой образователни институции: \n(общински, държавни и частни на територията на районната администрация)"]
["Обхванати образователни инститиции: "]
["Брой малки населени места: \n(при наличие на такива на територияна на районната администрация)"]
["Обхванати малки населени места: "]
[]
["Важни условия при попълването на таблицата"]
["Попълването на таблицата с целевите групи на проекта е задължително!"]
["Брой заявени преки участници по проект (B3) трябва да бъде равен на общия сбор на участниците по възраст (B14)"]

{"sheet":"Дейности по проекта","index":3,"n_rows":14,"n_cols":3,"rows_kept":14,"cut":false,"hidden":false,"merged":[[0,0,0,2],[1,0,1,2]]}
["Описание на дейностите по проекта \n/Моля, посочете периода, през който ще бъдат реализирани проектните дейности/"]
["Заложените дейности по проекта следва да бъдат осъществени в периода 01.08 - 30.11.2026 г."]
[null,"Опишете точно и ясно \nдейностите по проекта:\n(Важно! закупуването на пособия не е дейност)","Период за реализиране на дейността \n/дата във формат 01.01.2026/"]
["1."]
["2."]
["3."]
["4."]
["5."]
["6."]
["7."]
["8."]
["9."]
[10]
["11.","Приключване на проекта:"]

{"sheet":"Финансов план","index":4,"n_rows":36,"n_cols":9,"rows_kept":36,"cut":false,"hidden":false,"merged":[[16,1,16,2],[25,1,25,2],[24,1,24,2],[13,1,13,2],[14,1,14,2],[15,1,15,2],[17,1,17,2],[19,1,19,2],[21,1,21,2],[22,1,22,4],[23,1,23,2],[20,1,20,2],[29,1,29,2],[28,1,28,2],[27,1,27,2],[26,1,26,2],[32,1,32,2],[31,1,31,2],[30,1,30,2],[5,1,5,6],[0,0,1,8],[3,1,3,6],[4,1,4,6],[2,1,2,2],[2,3,2,6],[12,1,12,2],[6,1,6,2],[7,1,7,4],[8,1,8,2],[11,1,11,2],[9,1,9,2],[10,1,10,2],[35,0,35,8],[33,0,34,4],[33,5,34,5],[33,8,34,8],[34,6,34,7]]}
["Финансов план на проекта "]
[]
[null,"Кандидатстваща институция:",null,{"$f":"IF(Данни!B12=\"\",\"\",Данни!B12)","v":""},null,null,null,"Сума в €","%"]
["1.","Обща сума за реализация на проекта",null,null,null,null,null,null,{"$f":"I5+I6","v":{"$error":"#DIV/0!"}}]
["1.1.","Искано финансиране от Столична община",null,null,null,null,null,null,{"$f":"H5/H4*100","v":{"$error":"#DIV/0!"}}]
["1.2.","Собствено финансиране (общ размер). \nВ клетки \"Източник\" впишете собственото финансиране за осъществяване на проекта, при наличие на такова.",null,null,null,null,null,null,{"$f":"H6/H4*100","v":{"$error":"#DIV/0!"}}]
["2.","Видове разходи",null,"Количество","Ед. Стойност","Обща стойност","Столична община","Собствено финансиране","Относите-лен дял на разхода по %"]
["2.1.","Преки разходи за осъществяване на проекта",null,null,null,{"$f":"SUM(F9:F22)","v":0},{"$f":"SUM(G9:G22)","v":0},{"$f":"SUM(H9:H22)","v":0},{"$f":"SUM(I9:I22)","v":{"$error":"#DIV/0!"}}]
[null,null,null,null,null,{"$f":"D9*E9","v":0},null,null,{"$f":"F9/F34*100","v":{"$error":"#DIV/0!"}}]
[null,null,null,null,null,0,null,null,{"$f":"F10/F34*100","v":{"$error":"#DIV/0!"}}]
[null,null,null,null,null,0,null,null,{"$f":"F11/F34*100","v":{"$error":"#DIV/0!"}}]
[null,null,null,null,null,0,null,null,{"$f":"F12/F34*100","v":{"$error":"#DIV/0!"}}]
[null,null,null,null,null,0,null,null,{"$f":"F13/F34*100","v":{"$error":"#DIV/0!"}}]
[null,null,null,null,null,0,null,null,{"$f":"F14/F34*100","v":{"$error":"#DIV/0!"}}]
[null,null,null,null,null,{"$f":"D15*E15","v":0},null,null,{"$f":"F15/F34*100","v":{"$error":"#DIV/0!"}}]
[null,null,null,null,null,0,null,null,{"$f":"F16/F34*100","v":{"$error":"#DIV/0!"}}]
[null,null,null,null,null,0,null,null,{"$f":"F17/F34*100","v":{"$error":"#DIV/0!"}}]
[null,null,null,null,null,0,null,null,{"$f":"F18/F34*100","v":{"$error":"#DIV/0!"}}]
[null,null,null,null,null,0,null,null,{"$f":"F19/F34*100","v":{"$error":"#DIV/0!"}}]
[null,null,null,null,null,0,null,null,{"$f":"F20/F34*100","v":{"$error":"#DIV/0!"}}]
[null,null,null,null,null,0,null,null,{"$f":"F21/F34*100","v":{"$error":"#DIV/0!"}}]
[null,null,null,null,null,0,null,null,{"$f":"F22/F34*100","v":{"$error":"#DIV/0!"}}]
["2.2.","Непреки разходи за осъществяване на проекта",null,null,null,{"$f":"SUM(F24:F33)","v":0},{"$f":"SUM(G24:G33)","v":0},{"$f":"SUM(H24:H33)","v":0},{"$f":"SUM(I24:I33)","v":{"$error":"#DIV/0!"}}]
[null,null,null,null,null,{"$f":"D24*E24","v":0},null,null,{"$f":"F24/F34*100","v":{"$error":"#DIV/0!"}}]
[null,null,null,null,null,0,null,null,{"$f":"F25/F34*100","v":{"$error":"#DIV/0!"}}]
[null,null,null,null,null,0,null,null,{"$f":"F26/F34*100","v":{"$error":"#DIV/0!"}}]
[null,null,null,null,null,0,null,null,{"$f":"F27/F34*100","v":{"$error":"#DIV/0!"}}]
[null,null,null,null,null,0,null,null,{"$f":"F28/F34*100","v":{"$error":"#DIV/0!"}}]
[null,null,null,null,null,0,null,null,{"$f":"F29/F34*100","v":{"$error":"#DIV/0!"}}]
[null,null,null,null,null,0,null,null,{"$f":"F30/F34*100","v":{"$error":"#DIV/0!"}}]
[null,null,null,null,null,0,null,null,{"$f":"F31/F34*100","v":{"$error":"#DIV/0!"}}]
[null,null,null,null,null,0,null,null,{"$f":"F32/F34*100","v":{"$error":"#DIV/0!"}}]
[null,null,null,null,null,0,null,null,{"$f":"F33/F34*100","v":{"$error":"#DIV/0!"}}]
["Общо в евро",null,null,null,null,{"$f":"F8+F23","v":0},{"$f":"G8+G23","v":0},{"$f":"H8+H23","v":0},{"$f":"I23+I8","v":{"$error":"#DIV/0!"}}]
[null,null,null,null,null,null,{"$f":"G34+H34","v":0}]
["Забележка! Резултатите в клетките оцветени в синьо ще получите автоматично, при коректно попълване на останалите клетки. При необходимост е възможно да добавяте нови редове или да триете излишните чрез приложените бутони. Сумите в колона \"Обща стойност\" се формират чрез умножение на стойностите от колони \"Единична стойност\" и \"Количество\". При изписване на сумите се използва само запетая като десетичен разделител, а не точка.Сумите, резултат от сбора на колони \"Столична община\" и \"Собствено финансиране\", следва да бъдат равни на сумите в колона \"Обща стойност\"."]